[Event "*** Titled Tuesday Blitz"]
[Site "Chess.com"]
[Date "2021.02.09"]
[Round "2"]
[White "semchik73"]
[Black "Twitch_ElhamBlitz05"]
[Result "0-1"]
[WhiteElo "2338"]
[BlackElo "2743"]
[TimeControl "180+1"]
[EndTime "10:20:06 PST"]
[Termination "Twitch_ElhamBlitz05 won on time"]

1. Nf3 {[%clk 0:02:59]} 1... Nf6 {[%clk 0:02:58.7]} 2. c4 {[%clk 0:02:59.1]}
2... d6 {[%clk 0:02:59]} 3. d4 {[%clk 0:02:58.7]} 3... g6 {[%clk 0:02:59.8]} 4.
Nc3 {[%clk 0:02:58.7]} 4... Bg7 {[%clk 0:03:00.7]} 5. e3 {[%clk 0:02:59.2]} 5...
O-O {[%clk 0:03:01.6]} 6. Be2 {[%clk 0:02:59.8]} 6... Nc6 {[%clk 0:03:02.1]} 7.
O-O {[%clk 0:03:00.5]} 7... e5 {[%clk 0:03:02.7]} 8. b3 {[%clk 0:02:58.5]} 8...
exd4 {[%clk 0:03:02.9]} 9. exd4 {[%clk 0:02:58.4]} 9... Re8 {[%clk 0:03:03.5]}
10. Bg5 {[%clk 0:02:55.1]} 10... Bg4 {[%clk 0:03:01.1]} 11. h3 {[%clk
0:02:50.8]} 11... Bxf3 {[%clk 0:02:51.5]} 12. Bxf3 {[%clk 0:02:50.7]} 12... h6
{[%clk 0:02:52.2]} 13. Be3 {[%clk 0:02:48.7]} 13... Qd7 {[%clk 0:02:39.6]} 14.
Qd2 {[%clk 0:02:48.3]} 14... Kh7 {[%clk 0:02:39.4]} 15. Rfe1 {[%clk 0:02:46.3]}
15... Re7 {[%clk 0:02:35.5]} 16. a3 {[%clk 0:02:30.1]} 16... Rae8 {[%clk
0:02:35.1]} 17. b4 {[%clk 0:02:28.5]} 17... a6 {[%clk 0:02:12.7]} 18. Rab1
{[%clk 0:01:46.9]} 18... Qf5 {[%clk 0:02:00.4]} 19. b5 {[%clk 0:00:48.3]} 19...
Na5 {[%clk 0:02:00.3]} 20. Be2 {[%clk 0:00:47.1]} 20... axb5 {[%clk 0:01:55.1]}
21. Rxb5 {[%clk 0:00:45.6]} 21... Nxc4 {[%clk 0:01:29.7]} 22. Bxc4 {[%clk
0:00:43.7]} 22... Qc8 {[%clk 0:01:30.4]} 23. Reb1 {[%clk 0:00:42.2]} 23... c6
{[%clk 0:01:30.1]} 24. R5b2 {[%clk 0:00:41.2]} 24... d5 {[%clk 0:01:28.8]} 25.
Bd3 {[%clk 0:00:40.4]} 25... Ne4 {[%clk 0:01:28.9]} 26. Nxe4 {[%clk 0:00:38.7]}
26... dxe4 {[%clk 0:01:29.8]} 27. Bc4 {[%clk 0:00:38.4]} 27... f5 {[%clk
0:01:27.9]} 28. Rb3 {[%clk 0:00:31.4]} 28... Rd8 {[%clk 0:01:26.2]} 29. Rd1
{[%clk 0:00:26.1]} 29... b5 {[%clk 0:01:19.6]} 30. Be2 {[%clk 0:00:25.4]} 30...
Red7 {[%clk 0:01:18.5]} 31. Qc2 {[%clk 0:00:24.3]} 31... Rd5 {[%clk 0:01:07.8]}
32. a4 {[%clk 0:00:22.5]} 32... bxa4 {[%clk 0:01:07.2]} 33. Rb4 {[%clk
0:00:22.7]} 33... a3 {[%clk 0:01:04.8]} 34. Rc4 {[%clk 0:00:22.8]} 34... a2
{[%clk 0:00:54.2]} 35. Qxa2 {[%clk 0:00:21.9]} 35... Qc7 {[%clk 0:00:41.8]} 36.
Qc2 {[%clk 0:00:21]} 36... f4 {[%clk 0:00:37.1]} 37. Rxc6 {[%clk 0:00:18.9]}
37... Qf7 {[%clk 0:00:37.7]} 38. Bc1 {[%clk 0:00:18.2]} 38... f3 {[%clk
0:00:25.8]} 39. gxf3 {[%clk 0:00:18.2]} 39... exf3 {[%clk 0:00:26.7]} 40. Bd3
{[%clk 0:00:18.6]} 40... R5d6 {[%clk 0:00:27.3]} 41. Rxd6 {[%clk 0:00:16.2]}
41... Rxd6 {[%clk 0:00:28.2]} 42. Be4 {[%clk 0:00:13.5]} 42... Bxd4 {[%clk
0:00:23.9]} 43. Be3 {[%clk 0:00:09.6]} 43... Qf6 {[%clk 0:00:13.3]} 44. Rxd4
{[%clk 0:00:08.6]} 44... Rxd4 {[%clk 0:00:13.2]} 45. Bxd4 {[%clk 0:00:09]} 45...
Qxd4 {[%clk 0:00:03.7]} 46. Qc7+ {[%clk 0:00:09.6]} 46... Kh8 {[%clk 0:00:01.9]}
47. Qc8+ {[%clk 0:00:09.5]} 47... Kg7 {[%clk 0:00:02.2]} 48. Qb7+ {[%clk
0:00:09.8]} 48... Kf6 {[%clk 0:00:02.4]} 49. Bxf3 {[%clk 0:00:09.8]} 49... Qa1+
{[%clk 0:00:01.7]} 50. Kg2 {[%clk 0:00:10.1]} 50... Qd4 {[%clk 0:00:02.4]} 51.
Qc7 {[%clk 0:00:09.8]} 51... h5 {[%clk 0:00:02.2]} 52. Qc6+ {[%clk 0:00:10.2]}
52... Kg7 {[%clk 0:00:02.6]} 53. Qd5 {[%clk 0:00:10.1]} 53... Qa1 {[%clk
0:00:02.5]} 54. Qd7+ {[%clk 0:00:09.9]} 54... Kh6 {[%clk 0:00:03]} 55. Be4
{[%clk 0:00:10.1]} 55... Qe5 {[%clk 0:00:02.5]} 56. Bd3 {[%clk 0:00:09.3]} 56...
Qg5+ {[%clk 0:00:02.7]} 57. Kf1 {[%clk 0:00:09.6]} 57... Qc1+ {[%clk 0:00:03]}
58. Ke2 {[%clk 0:00:10.2]} 58... Qb2+ {[%clk 0:00:03.6]} 59. Ke3 {[%clk
0:00:10]} 59... Qe5+ {[%clk 0:00:03.8]} 60. Kf3 {[%clk 0:00:10.1]} 60... Qf6+
{[%clk 0:00:03.7]} 61. Kg3 {[%clk 0:00:10.2]} 61... Qg5+ {[%clk 0:00:03.8]} 62.
Kf3 {[%clk 0:00:10.3]} 62... Qf6+ {[%clk 0:00:03.9]} 63. Ke2 {[%clk 0:00:09.9]}
63... Qe5+ {[%clk 0:00:04.2]} 64. Kd2 {[%clk 0:00:09]} 64... Qf4+ {[%clk
0:00:03.6]} 65. Kc3 {[%clk 0:00:08.3]} 65... Qxf2 {[%clk 0:00:03.3]} 66. Qe6
{[%clk 0:00:07.8]} 66... Qg3 {[%clk 0:00:02.5]} 67. Kd4 {[%clk 0:00:06.3]} 67...
Qf2+ {[%clk 0:00:02.5]} 68. Kd5 {[%clk 0:00:05.8]} 68... Qf3+ {[%clk 0:00:01.9]}
69. Be4 {[%clk 0:00:06.1]} 69... Qg3 {[%clk 0:00:02.4]} 70. h4 {[%clk
0:00:05.2]} 70... Qg1 {[%clk 0:00:01.8]} 71. Qf6 {[%clk 0:00:03.8]} 71... Qd1+
{[%clk 0:00:01.8]} 72. Ke6 {[%clk 0:00:03.4]} 72... Qg4+ {[%clk 0:00:02]} 0-1

[Event "*** Titled Tuesday Blitz"]
[Site "Chess.com"]
[Date "2021.02.09"]
[Round "2"]
[White "eCztery"]
[Black "GoltsevDmitry2000"]
[Result "1/2-1/2"]
[WhiteElo "2487"]
[BlackElo "2717"]
[TimeControl "180+1"]
[EndTime "10:20:09 PST"]
[Termination "Game drawn - insufficient material"]

1. e4 {[%clk 0:03:00.9]} 1... c5 {[%clk 0:02:36.1]} 2. Nf3 {[%clk 0:02:59.6]}
2... e6 {[%clk 0:02:33.5]} 3. d4 {[%clk 0:02:58.5]} 3... cxd4 {[%clk 0:02:33.1]}
4. Nxd4 {[%clk 0:02:59.4]} 4... a6 {[%clk 0:02:32.7]} 5. g3 {[%clk 0:02:55.6]}
5... Nf6 {[%clk 0:02:30]} 6. Bg2 {[%clk 0:02:53.3]} 6... Qc7 {[%clk 0:02:28.2]}
7. O-O {[%clk 0:02:52.2]} 7... Nc6 {[%clk 0:02:23.7]} 8. Nc3 {[%clk 0:02:50.8]}
8... Be7 {[%clk 0:02:22.6]} 9. Re1 {[%clk 0:02:47.2]} 9... d6 {[%clk 0:02:22.6]}
10. Nxc6 {[%clk 0:02:46.7]} 10... bxc6 {[%clk 0:02:21]} 11. e5 {[%clk
0:02:46.5]} 11... dxe5 {[%clk 0:02:19.9]} 12. Rxe5 {[%clk 0:02:47.4]} 12... O-O
{[%clk 0:02:18.3]} 13. Bf4 {[%clk 0:02:45.4]} 13... Qb7 {[%clk 0:02:18.7]} 14.
Na4 {[%clk 0:02:36.2]} 14... Nd5 {[%clk 0:02:18.1]} 15. Bd2 {[%clk 0:02:28.1]}
15... Bf6 {[%clk 0:02:18.4]} 16. Re4 {[%clk 0:02:20.2]} 16... Rd8 {[%clk
0:02:18.4]} 17. Ba5 {[%clk 0:02:12.9]} 17... Nc3 {[%clk 0:02:02.9]} 18. Qe1
{[%clk 0:02:06.6]} 18... Nxe4 {[%clk 0:02:02.7]} 19. Bxd8 {[%clk 0:02:03]} 19...
Bxd8 {[%clk 0:02:03.6]} 20. Qxe4 {[%clk 0:01:59]} 20... Bd7 {[%clk 0:02:03.5]}
21. Rd1 {[%clk 0:01:55.8]} 21... Be8 {[%clk 0:01:58.9]} 22. b3 {[%clk 0:01:56]}
22... Be7 {[%clk 0:01:54.6]} 23. Nb2 {[%clk 0:01:49.7]} 23... Qc7 {[%clk
0:01:46.3]} 24. Nc4 {[%clk 0:01:47.2]} 24... Rd8 {[%clk 0:01:46.6]} 25. Rxd8
{[%clk 0:01:39.9]} 25... Qxd8 {[%clk 0:01:47.5]} 26. Bf3 {[%clk 0:01:29.7]}
26... Qd5 {[%clk 0:01:40.9]} 27. Qf4 {[%clk 0:01:25]} 27... Qb5 {[%clk
0:01:34.6]} 28. Qc7 {[%clk 0:01:17.7]} 28... Qc5 {[%clk 0:01:14.4]} 29. Qc8
{[%clk 0:01:12.7]} 29... Kf8 {[%clk 0:01:13.4]} 30. Kg2 {[%clk 0:01:10.8]} 30...
f6 {[%clk 0:01:06.8]} 31. Qxe6 {[%clk 0:01:06.3]} 31... a5 {[%clk 0:00:54.2]}
32. Ne3 {[%clk 0:00:55.7]} 32... g6 {[%clk 0:00:52]} 33. a4 {[%clk 0:00:47.5]}
33... f5 {[%clk 0:00:47.9]} 34. Nc4 {[%clk 0:00:44.4]} 34... Kg7 {[%clk
0:00:34.4]} 35. Ne5 {[%clk 0:00:33.3]} 35... Bf6 {[%clk 0:00:29.2]} 36. Nxc6
{[%clk 0:00:24.6]} 36... Bf7 {[%clk 0:00:24.2]} 37. Qe2 {[%clk 0:00:17.9]} 37...
g5 {[%clk 0:00:24.4]} 38. h3 {[%clk 0:00:17.7]} 38... h5 {[%clk 0:00:22.4]} 39.
Qb5 {[%clk 0:00:12.9]} 39... Qxc2 {[%clk 0:00:20]} 40. Ne5 {[%clk 0:00:11.9]}
40... g4 {[%clk 0:00:08.7]} 41. hxg4 {[%clk 0:00:12.3]} 41... hxg4 {[%clk
0:00:09.6]} 42. Bc6 {[%clk 0:00:10.4]} 42... Qxb3 {[%clk 0:00:04.4]} 43. Nxf7
{[%clk 0:00:09.4]} 43... Qxb5 {[%clk 0:00:02.8]} 44. axb5 {[%clk 0:00:08.7]}
44... Kxf7 {[%clk 0:00:03.7]} 45. b6 {[%clk 0:00:07.9]} 45... Be5 {[%clk
0:00:03.5]} 46. Kf1 {[%clk 0:00:07.2]} 46... Ke6 {[%clk 0:00:03.9]} 47. Ke2
{[%clk 0:00:06.9]} 47... Kd6 {[%clk 0:00:04.3]} 48. Be8 {[%clk 0:00:06.6]} 48...
Kd5 {[%clk 0:00:03.8]} 49. b7 {[%clk 0:00:06.6]} 49... Bd6 {[%clk 0:00:03.8]}
50. Bd7 {[%clk 0:00:06.6]} 50... Ke5 {[%clk 0:00:03.2]} 51. Kd3 {[%clk
0:00:06.8]} 51... Bb8 {[%clk 0:00:03.5]} 52. Kc4 {[%clk 0:00:06.8]} 52... Ke4
{[%clk 0:00:04]} 53. Kb5 {[%clk 0:00:06.6]} 53... Bc7 {[%clk 0:00:03.9]} 54. Kc6
{[%clk 0:00:06.3]} 54... Bb8 {[%clk 0:00:04.1]} 55. Kb6 {[%clk 0:00:06.6]} 55...
a4 {[%clk 0:00:03.7]} 56. Bxa4 {[%clk 0:00:06.6]} 56... Kf3 {[%clk 0:00:04.6]}
57. Bd7 {[%clk 0:00:06.1]} 57... Kxf2 {[%clk 0:00:04.9]} 58. Bxf5 {[%clk
0:00:06.5]} 58... Kxg3 {[%clk 0:00:05.5]} 59. Kc6 {[%clk 0:00:07.4]} 59... Kf4
{[%clk 0:00:04.5]} 60. Bd3 {[%clk 0:00:07.2]} 60... Kf3 {[%clk 0:00:03.9]} 61.
Kd7 {[%clk 0:00:07]} 61... g3 {[%clk 0:00:04.1]} 62. Bb5 {[%clk 0:00:06.8]}
62... Kf2 {[%clk 0:00:03.3]} 63. Bc6 {[%clk 0:00:07.7]} 63... g2 {[%clk
0:00:02.1]} 64. Bxg2 {[%clk 0:00:07.6]} 64... Kxg2 {[%clk 0:00:03]} 65. Kc8
{[%clk 0:00:08.5]} 65... Bh2 {[%clk 0:00:03.7]} 66. Kd8 {[%clk 0:00:09.4]} 66...
Kf3 {[%clk 0:00:03.6]} 67. Kd7 {[%clk 0:00:09.9]} 67... Ke4 {[%clk 0:00:04]} 68.
Kc6 {[%clk 0:00:10.8]} 68... Kd4 {[%clk 0:00:04.1]} 69. Kd7 {[%clk 0:00:10.9]}
69... Kc4 {[%clk 0:00:04.4]} 70. Kc6 {[%clk 0:00:11.1]} 70... Kb4 {[%clk
0:00:04.8]} 71. Kb6 {[%clk 0:00:11.6]} 71... Bg3 {[%clk 0:00:04.8]} 72. Kc6
{[%clk 0:00:12.5]} 72... Bb8 {[%clk 0:00:05.1]} 73. Kd5 {[%clk 0:00:13.4]} 73...
Kb5 {[%clk 0:00:05.5]} 74. Ke6 {[%clk 0:00:13.6]} 74... Kb6 {[%clk 0:00:06.4]}
75. Kd7 {[%clk 0:00:14.5]} 75... Kxb7 {[%clk 0:00:07.3]} 1/2-1/2

[Event "*** Titled Tuesday Blitz"]
[Site "Chess.com"]
[Date "2021.02.09"]
[Round "2"]
[White "Homino"]
[Black "ehrenfeld"]
[Result "0-1"]
[WhiteElo "2281"]
[BlackElo "2506"]
[TimeControl "180+1"]
[EndTime "10:20:22 PST"]
[Termination "ehrenfeld won by resignation"]

1. e4 {[%clk 0:03:00.9]} 1... e5 {[%clk 0:02:59.2]} 2. Nf3 {[%clk 0:03:00.5]}
2... Nc6 {[%clk 0:02:59.3]} 3. Bb5 {[%clk 0:02:57.7]} 3... a6 {[%clk 0:02:59.5]}
4. Ba4 {[%clk 0:02:57.8]} 4... Nf6 {[%clk 0:02:59.6]} 5. O-O {[%clk 0:02:57.4]}
5... Be7 {[%clk 0:02:59.7]} 6. Re1 {[%clk 0:02:57.4]} 6... b5 {[%clk 0:02:59.5]}
7. Bb3 {[%clk 0:02:57.7]} 7... d6 {[%clk 0:03:00]} 8. c3 {[%clk 0:02:57.7]} 8...
O-O {[%clk 0:03:00]} 9. h3 {[%clk 0:02:57.5]} 9... Na5 {[%clk 0:03:00.1]} 10.
Bc2 {[%clk 0:02:57.7]} 10... c5 {[%clk 0:03:00.5]} 11. d4 {[%clk 0:02:57.7]}
11... Qc7 {[%clk 0:03:00.1]} 12. Nbd2 {[%clk 0:02:53.7]} 12... Bd7 {[%clk
0:02:55.2]} 13. Nf1 {[%clk 0:02:48.1]} 13... Rfe8 {[%clk 0:02:54.5]} 14. d5
{[%clk 0:02:47.3]} 14... c4 {[%clk 0:02:50.2]} 15. Bg5 {[%clk 0:02:41.5]} 15...
Nb7 {[%clk 0:02:47.7]} 16. a4 {[%clk 0:02:26.5]} 16... Nc5 {[%clk 0:02:46.8]}
17. a5 {[%clk 0:02:22.6]} 17... Rec8 {[%clk 0:02:30]} 18. Ng3 {[%clk 0:02:03.4]}
18... g6 {[%clk 0:02:27.9]} 19. Nh2 {[%clk 0:01:45.7]} 19... Qd8 {[%clk
0:02:27.1]} 20. Bh6 {[%clk 0:01:38.3]} 20... Be8 {[%clk 0:02:12.1]} 21. Qd2
{[%clk 0:01:31.9]} 21... Nb7 {[%clk 0:02:02.3]} 22. Nf5 {[%clk 0:01:23.1]} 22...
Nd7 {[%clk 0:01:29.1]} 23. Nxe7+ {[%clk 0:01:15.7]} 23... Qxe7 {[%clk
0:01:28.9]} 24. Ng4 {[%clk 0:01:12.1]} 24... f6 {[%clk 0:01:24.4]} 25. f4 {[%clk
0:01:05.6]} 25... exf4 {[%clk 0:01:23.8]} 26. Bxf4 {[%clk 0:00:57.1]} 26... Ne5
{[%clk 0:01:18.5]} 27. Rf1 {[%clk 0:00:46.8]} 27... Bd7 {[%clk 0:01:11.9]} 28.
Nxe5 {[%clk 0:00:22]} 28... dxe5 {[%clk 0:01:06.8]} 29. Be3 {[%clk 0:00:22]}
29... Nd6 {[%clk 0:00:59.9]} 30. Qf2 {[%clk 0:00:20]} 30... Rf8 {[%clk 0:00:55]}
31. Qh4 {[%clk 0:00:19.4]} 31... Rf7 {[%clk 0:00:51.1]} 32. Bc5 {[%clk
0:00:17.9]} 32... Raf8 {[%clk 0:00:45.9]} 33. Rf2 {[%clk 0:00:17.4]} 33... Bc8
{[%clk 0:00:45.4]} 34. Raf1 {[%clk 0:00:16.1]} 34... Qd8 {[%clk 0:00:45.2]} 35.
Qh6 {[%clk 0:00:14.2]} 35... Rd7 {[%clk 0:00:40.6]} 36. Rf3 {[%clk 0:00:11.5]}
36... Rff7 {[%clk 0:00:35.4]} 37. R3f2 {[%clk 0:00:11]} 37... Ne8 {[%clk
0:00:33.7]} 38. Bd1 {[%clk 0:00:09.1]} 38... Nd6 {[%clk 0:00:32.5]} 39. Bg4
{[%clk 0:00:08.3]} 39... Nxe4 {[%clk 0:00:29.1]} 40. Bxd7 {[%clk 0:00:07]} 40...
Bxd7 {[%clk 0:00:29]} 41. Be3 {[%clk 0:00:05.2]} 41... f5 {[%clk 0:00:28.7]} 42.
Re2 {[%clk 0:00:03.1]} 42... Bc8 {[%clk 0:00:27.6]} 43. Bc1 {[%clk 0:00:03.2]}
43... Qxd5 {[%clk 0:00:26.4]} 44. Qe3 {[%clk 0:00:03.3]} 44... Bb7 {[%clk
0:00:26.3]} 45. Qb6 {[%clk 0:00:03.1]} 45... Qc6 {[%clk 0:00:25.8]} 46. Qxc6
{[%clk 0:00:02.9]} 46... Bxc6 {[%clk 0:00:25.9]} 47. Rd1 {[%clk 0:00:03.5]}
47... Rd7 {[%clk 0:00:22.3]} 48. Rxd7 {[%clk 0:00:02.5]} 48... Bxd7 {[%clk
0:00:22.5]} 49. Re1 {[%clk 0:00:03.1]} 49... Kf7 {[%clk 0:00:22.5]} 50. Rd1
{[%clk 0:00:03.7]} 50... Ke6 {[%clk 0:00:22.7]} 51. Be3 {[%clk 0:00:04.2]} 51...
f4 {[%clk 0:00:22.1]} 52. Bb6 {[%clk 0:00:04.6]} 52... g5 {[%clk 0:00:21.6]} 53.
Re1 {[%clk 0:00:04.5]} 53... Bc6 {[%clk 0:00:20.8]} 54. Bc7 {[%clk 0:00:02.5]}
54... Bd5 {[%clk 0:00:20.1]} 55. Bb8 {[%clk 0:00:02.7]} 55... h5 {[%clk
0:00:20.1]} 56. Bc7 {[%clk 0:00:02.7]} 56... g4 {[%clk 0:00:19.9]} 57. hxg4
{[%clk 0:00:03.6]} 57... hxg4 {[%clk 0:00:19.4]} 58. Bb8 {[%clk 0:00:04.5]}
58... Kf5 {[%clk 0:00:19]} 59. Rd1 {[%clk 0:00:03.8]} 59... Ke6 {[%clk 0:00:16]}
60. Re1 {[%clk 0:00:03.8]} 60... Kf5 {[%clk 0:00:15.7]} 61. Rd1 {[%clk
0:00:04.2]} 61... Nf6 {[%clk 0:00:15.8]} 62. Re1 {[%clk 0:00:04.2]} 62... Be4
{[%clk 0:00:15.9]} 63. Rd1 {[%clk 0:00:03.9]} 63... Nd5 {[%clk 0:00:16.1]} 64.
Ba7 {[%clk 0:00:03.4]} 64... g3 {[%clk 0:00:16]} 65. Re1 {[%clk 0:00:03.5]}
65... Bd3 {[%clk 0:00:15.1]} 66. Bb8 {[%clk 0:00:03.9]} 66... e4 {[%clk
0:00:15]} 67. Rf1 {[%clk 0:00:04.3]} 67... Kg4 {[%clk 0:00:14.4]} 68. Re1 {[%clk
0:00:04.4]} 68... f3 {[%clk 0:00:14.1]} 69. gxf3+ {[%clk 0:00:05.3]} 69... exf3
{[%clk 0:00:14]} 70. Rd1 {[%clk 0:00:05.3]} 70... f2+ {[%clk 0:00:14.1]} 71. Kh1
{[%clk 0:00:05.2]} 71... f1=Q+ {[%clk 0:00:14.6]} 72. Rxf1 {[%clk 0:00:04.9]}
72... Bxf1 {[%clk 0:00:15.1]} 73. Kg1 {[%clk 0:00:05.8]} 73... Bd3 {[%clk
0:00:15.3]} 74. Ba7 {[%clk 0:00:06]} 74... Be4 {[%clk 0:00:15.2]} 75. Bc5 {[%clk
0:00:06.1]} 75... Kf3 {[%clk 0:00:15.3]} 76. Bd4 {[%clk 0:00:06.5]} 76... Nf4
{[%clk 0:00:15.8]} 77. Bc5 {[%clk 0:00:05.4]} 77... Nh3+ {[%clk 0:00:15.7]} 78.
Kf1 {[%clk 0:00:05.5]} 78... g2+ {[%clk 0:00:15.1]} 79. Ke1 {[%clk 0:00:06.1]}
79... g1=Q+ {[%clk 0:00:15.4]} 80. Bxg1 {[%clk 0:00:06.7]} 80... Nxg1 {[%clk
0:00:15.5]} 81. Kd2 {[%clk 0:00:07.6]} 81... Ne2 {[%clk 0:00:15.5]} 82. Kd1
{[%clk 0:00:07.1]} 82... Ke3 {[%clk 0:00:15.2]} 83. Ke1 {[%clk 0:00:06.4]} 83...
Nxc3 {[%clk 0:00:15.2]} 84. bxc3 {[%clk 0:00:05.5]} 84... Kd3 {[%clk 0:00:15.3]}
85. Kd1 {[%clk 0:00:06.4]} 85... Kxc3 {[%clk 0:00:15.3]} 86. Kc1 {[%clk
0:00:07.3]} 86... Kb4 {[%clk 0:00:15.8]} 87. Kb2 {[%clk 0:00:07.2]} 87... Kxa5
{[%clk 0:00:16.2]} 0-1

[Event "*** Titled Tuesday Blitz"]
[Site "Chess.com"]
[Date "2021.02.09"]
[Round "2"]
[White "LawrenceTrent"]
[Black "TheCairnTerrier"]
[Result "1-0"]
[WhiteElo "2600"]
[BlackElo "2170"]
[TimeControl "180+1"]
[EndTime "10:20:35 PST"]
[Termination "LawrenceTrent won on time"]

1. d4 {[%clk 0:03:00.9]} 1... Nf6 {[%clk 0:02:59.1]} 2. Nc3 {[%clk 0:03:01.4]}
2... d5 {[%clk 0:02:50.8]} 3. Bf4 {[%clk 0:03:01]} 3... e6 {[%clk 0:02:47.6]} 4.
e3 {[%clk 0:03:00.6]} 4... Bd6 {[%clk 0:02:46]} 5. Qf3 {[%clk 0:02:57.7]} 5...
a5 {[%clk 0:02:14]} 6. g4 {[%clk 0:02:56.1]} 6... Bb4 {[%clk 0:01:54.7]} 7. Ne2
{[%clk 0:02:54.1]} 7... Ne4 {[%clk 0:01:53.1]} 8. a3 {[%clk 0:02:53.8]} 8...
Bxc3+ {[%clk 0:01:52.7]} 9. Nxc3 {[%clk 0:02:53.9]} 9... Nxc3 {[%clk 0:01:52.6]}
10. bxc3 {[%clk 0:02:54.3]} 10... b6 {[%clk 0:01:26.2]} 11. Qg3 {[%clk
0:02:47.3]} 11... Ra7 {[%clk 0:01:23.2]} 12. g5 {[%clk 0:02:46.3]} 12... Ba6
{[%clk 0:01:21.9]} 13. h4 {[%clk 0:02:45.5]} 13... Bxf1 {[%clk 0:01:20.9]} 14.
Kxf1 {[%clk 0:02:46.4]} 14... Nd7 {[%clk 0:01:16.9]} 15. h5 {[%clk 0:02:46.1]}
15... Qc8 {[%clk 0:00:36.3]} 16. Kg2 {[%clk 0:02:44.7]} 16... c5 {[%clk
0:00:32.1]} 17. g6 {[%clk 0:02:43.5]} 17... fxg6 {[%clk 0:00:19.9]} 18. hxg6
{[%clk 0:02:42.6]} 18... h6 {[%clk 0:00:19.5]} 19. Bxh6 {[%clk 0:02:18.8]} 19...
gxh6 {[%clk 0:00:20.4]} 20. g7 {[%clk 0:02:19.1]} 20... Rg8 {[%clk 0:00:20.7]}
21. Qg6+ {[%clk 0:02:19.4]} 21... Kd8 {[%clk 0:00:20.4]} 22. Rxh6 {[%clk
0:02:17.3]} 22... Kc7 {[%clk 0:00:19.7]} 23. Rg1 {[%clk 0:02:15.3]} 23... Qe8
{[%clk 0:00:15.3]} 24. Kf1 {[%clk 0:02:03.5]} 24... Qxg6 {[%clk 0:00:13.9]} 25.
Rgxg6 {[%clk 0:02:04.4]} 25... Raa8 {[%clk 0:00:14.4]} 26. f4 {[%clk 0:01:58.4]}
26... Rae8 {[%clk 0:00:14.3]} 27. Ke2 {[%clk 0:01:58.1]} 27... Re7 {[%clk
0:00:14.6]} 28. Rh7 {[%clk 0:01:53.7]} 28... Kd8 {[%clk 0:00:14.4]} 29. Rh8
{[%clk 0:01:52]} 29... Ree8 {[%clk 0:00:14.4]} 30. Rxe6 {[%clk 0:01:49.4]} 30...
Rxh8 {[%clk 0:00:13.2]} 31. gxh8=Q {[%clk 0:01:49.8]} 31... Rxh8 {[%clk
0:00:13.5]} 32. Rd6 {[%clk 0:01:48.3]} 32... Rh5 {[%clk 0:00:13.5]} 33. dxc5
{[%clk 0:01:46.1]} 33... bxc5 {[%clk 0:00:12.9]} 34. Ra6 {[%clk 0:01:46.4]}
34... Rh2+ {[%clk 0:00:12.3]} 35. Kd1 {[%clk 0:01:45.9]} 35... Rh1+ {[%clk
0:00:11.7]} 36. Kd2 {[%clk 0:01:45.7]} 36... Rh2+ {[%clk 0:00:12.1]} 37. Kc1
{[%clk 0:01:46.1]} 37... Re2 {[%clk 0:00:12.2]} 38. Re6 {[%clk 0:01:42.8]} 38...
Kc7 {[%clk 0:00:10.5]} 39. Kd1 {[%clk 0:01:36.5]} 39... Rh2 {[%clk 0:00:10.2]}
40. Ra6 {[%clk 0:01:36.7]} 40... Rh1+ {[%clk 0:00:10.7]} 41. Ke2 {[%clk
0:01:36.6]} 41... Rh2+ {[%clk 0:00:11.1]} 42. Kd1 {[%clk 0:01:29.4]} 42... Rh1+
{[%clk 0:00:10.6]} 43. Kd2 {[%clk 0:01:29.7]} 43... Rh2+ {[%clk 0:00:10.8]} 44.
Kc1 {[%clk 0:01:29.5]} 44... Rh1+ {[%clk 0:00:11]} 45. Kb2 {[%clk 0:01:27.6]}
45... Re1 {[%clk 0:00:09.5]} 46. Re6 {[%clk 0:01:27.5]} 46... Re2 {[%clk
0:00:08.1]} 47. c4 {[%clk 0:01:22.2]} 47... dxc4 {[%clk 0:00:07.7]} 48. Kc3
{[%clk 0:01:22.5]} 48... Nb6 {[%clk 0:00:07.3]} 49. e4 {[%clk 0:01:19.9]} 49...
Na4+ {[%clk 0:00:07.3]} 50. Kxc4 {[%clk 0:01:20]} 50... Nb6+ {[%clk 0:00:06]}
51. Kxc5 {[%clk 0:01:18.9]} 51... Rxc2+ {[%clk 0:00:06]} 52. Kb5 {[%clk
0:01:19.4]} 52... Rb2+ {[%clk 0:00:05.5]} 53. Ka6 {[%clk 0:01:17.9]} 53... Nc4
{[%clk 0:00:03.4]} 54. f5 {[%clk 0:01:17.7]} 54... Re2 {[%clk 0:00:02.8]} 55. f6
{[%clk 0:01:17.7]} 55... Nxa3 {[%clk 0:00:02.4]} 56. Re7+ {[%clk 0:01:16.7]}
56... Kd6 {[%clk 0:00:02.2]} 57. e5+ {[%clk 0:01:16.8]} 57... Kd5 {[%clk
0:00:02.2]} 58. f7 {[%clk 0:01:16.6]} 58... Rf2 {[%clk 0:00:02.5]} 59. e6 {[%clk
0:01:17.1]} 59... Kd6 {[%clk 0:00:02.5]} 60. Re8 {[%clk 0:01:17.3]} 60... Nc4
{[%clk 0:00:01.5]} 61. f8=Q+ {[%clk 0:01:17.2]} 61... Rxf8 {[%clk 0:00:01.2]}
62. Rxf8 {[%clk 0:01:18.1]} 62... Kxe6 {[%clk 0:00:01.7]} 63. Kb5 {[%clk
0:01:16]} 63... Ne5 {[%clk 0:00:02.6]} 64. Kxa5 {[%clk 0:01:14.9]} 64... Nd7
{[%clk 0:00:03.5]} 65. Rh8 {[%clk 0:01:14.4]} 65... Ne5 {[%clk 0:00:04.4]} 66.
Kb5 {[%clk 0:01:14]} 66... Nd7 {[%clk 0:00:05.3]} 67. Kc4 {[%clk 0:01:13.1]}
67... Ne5+ {[%clk 0:00:06.2]} 68. Kd4 {[%clk 0:01:12.9]} 68... Nd7 {[%clk
0:00:06.9]} 69. Rh6+ {[%clk 0:01:12.6]} 69... Nf6 {[%clk 0:00:07.5]} 70. Rh1
{[%clk 0:01:11.6]} 70... Nd7 {[%clk 0:00:07.4]} 71. Re1+ {[%clk 0:01:11.2]}
71... Kd6 {[%clk 0:00:08]} 72. Ra1 {[%clk 0:01:12.1]} 72... Kc6 {[%clk
0:00:07.6]} 73. Ra6+ {[%clk 0:01:12.3]} 73... Nb6 {[%clk 0:00:07.8]} 74. Ra2
{[%clk 0:01:10.7]} 74... Nd7 {[%clk 0:00:07.6]} 75. Rf2 {[%clk 0:01:09.4]} 75...
Kd6 {[%clk 0:00:07.4]} 76. Re2 {[%clk 0:01:08.5]} 76... Nb6 {[%clk 0:00:07.1]}
77. Rh2 {[%clk 0:01:07.1]} 77... Nd7 {[%clk 0:00:07.3]} 78. Rh6+ {[%clk
0:01:07.7]} 78... Ke7 {[%clk 0:00:06.9]} 79. Ke4 {[%clk 0:01:07.1]} 79... Nf6+
{[%clk 0:00:07.1]} 80. Kf5 {[%clk 0:01:07.5]} 80... Nd7 {[%clk 0:00:06.8]} 81.
Rh7+ {[%clk 0:01:07]} 81... Kd6 {[%clk 0:00:07.2]} 82. Rh6+ {[%clk 0:01:06.2]}
82... Ke7 {[%clk 0:00:07.1]} 83. Re6+ {[%clk 0:01:04.9]} 83... Kd8 {[%clk
0:00:06.1]} 84. Ra6 {[%clk 0:01:01.7]} 84... Kc7 {[%clk 0:00:04.9]} 85. Rh6
{[%clk 0:00:59.4]} 85... Nb6 {[%clk 0:00:02.9]} 86. Ke5 {[%clk 0:00:58.4]} 86...
Nd7+ {[%clk 0:00:03.4]} 87. Kd5 {[%clk 0:00:58.2]} 87... Nb6+ {[%clk 0:00:03.4]}
88. Kc5 {[%clk 0:00:58.6]} 88... Nd7+ {[%clk 0:00:03.9]} 89. Kb5 {[%clk
0:00:59.2]} 89... Ne5 {[%clk 0:00:02.9]} 90. Rf6 {[%clk 0:00:53.6]} 90... Nd7
{[%clk 0:00:03.5]} 91. Re6 {[%clk 0:00:52.7]} 91... Kd8 {[%clk 0:00:02.8]} 92.
Kc6 {[%clk 0:00:50.5]} 92... Nb8+ {[%clk 0:00:03.3]} 93. Kd6 {[%clk 0:00:50.9]}
93... Kc8 {[%clk 0:00:03.3]} 94. Re7 {[%clk 0:00:48.5]} 94... Kd8 {[%clk
0:00:02.9]} 95. Rh7 {[%clk 0:00:29.3]} 95... Kc8 {[%clk 0:00:03.8]} 96. Ra7
{[%clk 0:00:27.8]} 96... Kd8 {[%clk 0:00:01.6]} 97. Rc7 {[%clk 0:00:24.8]} 97...
Na6 {[%clk 0:00:01.4]} 98. Rb7 {[%clk 0:00:25]} 1-0